fUSD/lending_fUSD_20260118
["ID","MTS","AMOUNT","RATE_DAILY","PERIOD"]
[402638843,1768733457066,-500.0,0.00017534,2]
[402638844,1768733457075,-500.0,0.00017534,2]
[402638845,1768733457084,-500.0,0.00017534,2]
[402638846,1768733457093,-500.0,0.00017534,2]
[402638847,1768733457102,-197.43855124,0.00017534,2]
[402638848,1768733457112,-500.0,0.00017534,2]
[402638849,1768733457123,-500.0,0.00017534,2]
[402638850,1768733457134,-500.0,0.00017534,2]
[402638851,1768733457144,-597.47257685,0.00017534,2]
[402638852,1768733457153,-500.0,0.00017534,2]
[402638853,1768733457164,-500.0,0.00017534,2]
[402638854,1768733457173,-500.0,0.00017534,2]
[402638855,1768733457182,-4641.83,0.00017534,2]
[402638856,1768733457191,-500.0,0.00017534,2]
[402638857,1768733457200,-500.0,0.00017534,2]
[402638858,1768733457209,-500.0,0.00017534,2]
[402638859,1768733457219,-235.7150467,0.00017534,2]
[402638860,1768733457229,-500.0,0.00017534,2]
[402638861,1768733457239,-513.99,0.00017534,2]
[402638862,1768733457249,-500.0,0.00017534,2]
[402638863,1768733457259,-777.05,0.00017534,2]
[402638864,1768733457268,-500.0,0.00017534,2]
[402638865,1768733457278,-561.98,0.00017534,2]
[402638866,1768733457289,-500.0,0.00017534,2]
[402638867,1768733457299,-500.0,0.00017534,2]
[402638868,1768733457309,-500.0,0.00017534,2]
[402638869,1768733457319,-500.0,0.00017534,2]
[402638870,1768733457330,-500.0,0.00017534,2]
[402638871,1768733457339,-500.0,0.00017534,2]
[402638872,1768733457349,-500.0,0.00017534,2]
[402638873,1768733457357,-500.0,0.00017534,2]
[402638874,1768733457367,-500.0,0.00017534,2]
[402638875,1768733457376,-500.0,0.00017534,2]
[402638876,1768733457385,-500.0,0.00017534,2]
[402638877,1768733457394,-419.21942532,0.00017534,2]
[402638878,1768733457403,-500.0,0.00017534,2]
[402638879,1768733457413,-500.0,0.00017534,2]
[402638880,1768733457422,-500.0,0.00017534,2]
[402638881,1768733457430,-500.0,0.00017534,2]
[402638882,1768733457439,-500.0,0.00017534,2]
[402638883,1768733457448,-500.0,0.00017534,2]
[402638884,1768733457457,-500.0,0.00017534,2]
[402638885,1768733457466,-500.0,0.00017534,2]
[402638886,1768733457475,-500.0,0.00017534,2]
[402638887,1768733457484,-500.0,0.00017534,2]
[402638888,1768733457493,-500.0,0.00017534,2]
[402638889,1768733457507,-500.0,0.00017534,2]
[402638890,1768733457516,-500.0,0.00017534,2]
[402638891,1768733457525,-500.0,0.00017534,2]
[402638892,1768733457534,-500.0,0.00017534,2]
[402638893,1768733457543,-500.0,0.00017534,2]
[402638894,1768733457552,-500.0,0.00017534,2]
[402638895,1768733457561,-500.0,0.00017534,2]
[402638896,1768733457569,-500.0,0.00017534,2]
[402638897,1768733457579,-500.0,0.00017534,2]
[402638898,1768733457587,-500.0,0.00017534,2]
[402638899,1768733457596,-500.0,0.00017534,2]
[402638900,1768733457606,-500.0,0.00017534,2]
[402638901,1768733457615,-527.81,0.00017534,2]
[402638902,1768733457624,-500.0,0.00017534,2]
[402638903,1768733457634,-500.0,0.00017534,2]
[402638904,1768733457643,-542.24,0.00017534,2]
[402638905,1768733457652,-500.0,0.00017534,2]
[402638906,1768733457662,-500.0,0.00017534,2]
[402638907,1768733457671,-500.0,0.00017534,2]
[402638908,1768733457680,-500.0,0.00017534,2]
[402638909,1768733457689,-500.0,0.00017534,2]
[402638910,1768733457699,-500.0,0.00017534,2]
[402638911,1768733457709,-643.70332727,0.00017534,2]
[402638912,1768733457718,-508.74,0.00017534,2]
[402638913,1768733457727,-500.0,0.00017534,2]
[402638914,1768733457736,-500.0,0.00017534,2]
[402638915,1768733457751,-500.0,0.00017534,2]
[402638916,1768733457761,-500.0,0.00017534,2]
[402638917,1768733457770,-500.0,0.00017534,2]
[402638918,1768733457779,-500.0,0.00017534,2]
[402638919,1768733457789,-527.91,0.00017534,2]
[402638920,1768733457798,-500.0,0.00017534,2]
[402638921,1768733457807,-500.0,0.00017534,2]
[402638922,1768733457816,-500.0,0.00017534,2]
[402638923,1768733457826,-500.0,0.00017534,2]
[402638924,1768733457835,-500.0,0.00017534,2]
[402638925,1768733457844,-500.0,0.00017534,2]
[402638926,1768733457854,-500.0,0.00017534,2]
[402638927,1768733457863,-500.0,0.00017534,2]
[402638928,1768733457872,-500.0,0.00017534,2]
[402638929,1768733457881,-500.0,0.00017534,2]
[402638930,1768733457891,-613.21,0.00017534,2]
[402638931,1768733457901,-500.0,0.00017534,2]
[402638932,1768733457911,-500.0,0.00017534,2]
[402638933,1768733457920,-500.0,0.00017534,2]
[402638934,1768733457929,-500.0,0.00017534,2]
[402638935,1768733457939,-542.76,0.00017534,2]
[402638936,1768733457947,-500.0,0.00017534,2]
[402638937,1768733457957,-500.0,0.00017534,2]
[402638938,1768733457966,-3368.44,0.00017534,2]
[402638939,1768733457976,-494.29987061,0.00017534,2]
[402638940,1768733457985,-500.0,0.00017534,2]
[402638941,1768733457995,-500.0,0.00017534,2]
[402638942,1768733458007,-500.0,0.00017534,2]
[402638943,1768733458017,-500.0,0.00017534,2]
[402638944,1768733458026,-546.70437087,0.00017534,2]
[402638945,1768733458035,-500.0,0.00017534,2]
[402638946,1768733458046,-500.0,0.00017534,2]
[402638947,1768733458055,-500.0,0.00017534,2]
[402638948,1768733458067,-500.0,0.00017534,2]
[402638949,1768733458076,-500.0,0.00017534,2]
[402638950,1768733458085,-1611.7,0.00017534,2]
[402638951,1768733458094,-500.0,0.00017534,2]
[402638952,1768733458103,-500.0,0.00017534,2]
[402638953,1768733458112,-500.0,0.00017534,2]
[402638954,1768733458121,-500.0,0.00017534,2]
[402638955,1768733458131,-500.0,0.00017534,2]
[402638956,1768733458140,-500.0,0.00017534,2]
[402638957,1768733458149,-500.0,0.00017534,2]
[402638958,1768733458158,-506.07,0.00017534,2]
[402638959,1768733458167,-546.15,0.00017534,2]
[402638960,1768733458176,-500.0,0.00017534,2]
[402638961,1768733458186,-535.02,0.00017534,2]
[402638962,1768733458195,-151.0,0.00017534,2]
[402638963,1768733458204,-500.0,0.00017534,2]
[402638964,1768733458214,-500.0,0.00017534,2]
[402638965,1768733458224,-151.0,0.00017534,2]
[402638966,1768733458233,-500.0,0.00017534,2]
[402638967,1768733458242,-164.1242988,0.00017534,2]
[402638968,1768733458251,-500.0,0.00017534,2]
[402638969,1768733458260,-500.0,0.00017534,2]
[402638970,1768733458268,-600.0,0.00017534,2]
[402638971,1768733458278,-1000.0,0.00017534,2]
[402638972,1768733458288,-673.27,0.00017548,2]
[402638973,1768733458297,-1500.0,0.00017568,2]
[402638974,1768733458306,-1500.0,0.00017568,2]
[402638975,1768733458315,-1500.0,0.00017568,2]
[402638976,1768733458325,-1505.48964317,0.00017568,2]
[402638977,1768733458334,-1500.0,0.00017568,2]
[402638978,1768733458344,-1000.0,0.00017568,2]
[402638979,1768733458353,-940.38824472,0.00017568,2]
[402638980,1768733458362,-873.13604917,0.00017568,2]
[402638981,1768733458372,-398.80157031,0.00017568,2]
[402638982,1768733458381,-1000.0,0.00017568,2]
[402638983,1768733458390,-363.75080239,0.00017568,2]
[402638984,1768733458399,-1500.0,0.00017568,2]
[402638985,1768733458409,-1130.30097829,0.00017568,2]
[402638986,1768733458418,-1500.0,0.00017568,2]
[402638987,1768733458427,-1500.0,0.00017568,2]
[402638988,1768733458436,-1122.45048123,0.00017568,2]
[402638989,1768733458446,-1500.0,0.00017568,2]
[402638990,1768733458455,-574.55972892,0.00017568,2]
[402638991,1768733458464,-282.54716323,0.00017568,2]
[402638992,1768733458474,-1000.0,0.00017568,2]
[402638993,1768733458483,-1500.0,0.00017568,2]
[402638994,1768733458492,-1000.0,0.00017568,2]
[402638995,1768733458501,-1500.0,0.00017568,2]
[402638996,1768733458510,-1000.0,0.00017568,2]
[402638997,1768733458520,-1500.0,0.00017568,2]
[402638998,1768733458529,-1000.0,0.00017568,2]
[402638999,1768733458539,-1500.0,0.00017568,2]
[402639000,1768733458548,-1000.0,0.00017568,2]
[402639001,1768733458558,-1500.0,0.00017568,2]
[402639002,1768733458568,-150.0,0.00017585,2]
[402639003,1768733458577,-5323.93942523,0.00017589,2]
[402639004,1768733458586,-761.65,0.00017597,2]
[402639005,1768733458595,-226.6,0.00017612,2]
[402639006,1768733458604,-150.0,0.0001764,2]
[402639007,1768733458614,-8511.66526342,0.0001764,2]
[402639008,1768733458624,-1216.93,0.00017665,2]
[402639009,1768733458633,-193.67377768,0.00017696,2]
[402639010,1768733458643,-187.0545473,0.00017718,2]
[402639011,1768733458652,-249.40606306,0.00017718,2]
[402639012,1768733458662,-5281.53667483,0.00017723,2]
[402639013,1768733458672,-150.0,0.00017723,2]
[402639014,1768733458681,-226.6,0.00017741,2]
[402639015,1768733458690,-345.68,0.00017767,2]
[402639016,1768733458700,-1012.87,0.000178,7]
[402639017,1768733458710,-2000.0,0.000178,2]
[402639018,1768733458721,-1132.80477824,0.000178,2]
[402639019,1768733458731,-2456.44059903,0.00017808,2]
[402639020,1768733458741,-2483.06338129,0.00017808,2]
[402639021,1768733458750,-500.0,0.00017808,2]
[402639022,1768733458759,-500.0,0.00017808,2]
[402639023,1768733458768,-500.0,0.00017808,2]
[402639024,1768733458778,-500.0,0.00017808,2]
[402639025,1768733458787,-500.0,0.00017808,2]
[402639026,1768733458796,-500.0,0.00017808,2]
[402639027,1768733458806,-597.05,0.00017808,2]
[402639028,1768733458816,-500.0,0.00017808,2]
[402639029,1768733458825,-500.0,0.00017808,2]
[402639030,1768733458836,-500.0,0.00017808,2]
[402639031,1768733458846,-500.0,0.00017808,2]
[402639032,1768733458855,-500.0,0.00017808,2]
[402639033,1768733458865,-500.0,0.00017808,2]
[402639034,1768733458874,-512.32,0.00017808,2]
[402639035,1768733458884,-500.0,0.00017808,2]
[402639036,1768733458893,-595.5,0.00017808,2]
[402639037,1768733458902,-521.03,0.00017808,2]
[402639038,1768733458912,-500.0,0.00017808,2]
[402639039,1768733458921,-705.84,0.00017808,2]
[402639040,1768733458931,-500.0,0.00017808,2]
[402639041,1768733458940,-1595.35,0.00017808,2]
[402639042,1768733458949,-500.0,0.00017808,2]
[402639043,1768733458959,-500.0,0.00017808,2]
[402639044,1768733458970,-500.0,0.00017808,2]
[402639045,1768733458980,-266.96486145,0.00017808,2]
[402639046,1768733458989,-1000.0,0.00017808,2]
[402639047,1768733458999,-461.25024724,0.00017808,2]
[402639048,1768733459011,-500.0,0.00017808,2]
[402639049,1768733459020,-500.0,0.00017808,2]
[402639050,1768733459030,-604.43211204,0.00017808,2]
[402639051,1768733459039,-500.0,0.00017808,2]
[402639052,1768733459049,-500.0,0.00017808,2]
[402639053,1768733459058,-500.0,0.00017808,2]
[402639054,1768733459068,-500.0,0.00017808,2]
[402639055,1768733459078,-500.0,0.00017808,2]
[402639056,1768733459087,-500.0,0.00017808,2]
[402639057,1768733459096,-500.0,0.00017808,2]
[402639058,1768733459106,-500.0,0.00017808,2]
[402639059,1768733459115,-500.0,0.00017808,2]
[402639060,1768733459125,-500.0,0.00017808,2]
[402639061,1768733459134,-500.0,0.00017808,2]
[402639062,1768733459143,-500.0,0.00017808,2]
[402639063,1768733459152,-500.0,0.00017808,2]
[402639064,1768733459161,-500.0,0.00017808,2]
[402639065,1768733459171,-570.19,0.00017808,2]
[402639066,1768733459180,-500.0,0.00017808,2]
[402639067,1768733459189,-500.0,0.00017808,2]
[402639068,1768733459199,-500.0,0.00017808,2]
[402639069,1768733459208,-500.0,0.00017808,2]
[402639070,1768733459217,-500.0,0.00017808,2]
[402639071,1768733459227,-500.0,0.00017808,2]
[402639072,1768733459236,-500.0,0.00017808,2]
[402639073,1768733459246,-500.0,0.00017808,2]
[402639074,1768733459255,-500.0,0.00017808,2]
[402639075,1768733459269,-626.37,0.00017808,2]
[402639076,1768733459278,-500.0,0.00017808,2]
[402639077,1768733459288,-500.0,0.00017808,2]
[402639078,1768733459297,-500.0,0.00017808,2]
[402639079,1768733459306,-546.59739914,0.00017808,2]
[402639080,1768733459315,-500.0,0.00017808,2]
[402639081,1768733459325,-500.0,0.00017808,2]
[402639082,1768733459334,-500.0,0.00017808,2]
[402639083,1768733459343,-500.0,0.00017808,2]
[402639084,1768733459352,-500.0,0.00017808,2]
[402639085,1768733459361,-500.0,0.00017808,2]
[402639086,1768733459370,-500.0,0.00017808,2]
[402639087,1768733459379,-513.23,0.00017808,2]
[402639088,1768733459388,-500.0,0.00017808,2]
[402639089,1768733459398,-500.0,0.00017808,2]
[402639090,1768733459408,-502.33,0.00017808,2]
[402639091,1768733459416,-500.0,0.00017808,2]
[402639092,1768733459426,-500.0,0.00017808,2]
[402639093,1768733459435,-868.6969251,0.00017808,2]
[402639094,1768733459444,-500.0,0.00017808,2]
[402639095,1768733459453,-500.0,0.00017808,2]
[402639096,1768733459462,-288.71398556,0.00017808,2]
[402639097,1768733459471,-696.23,0.00017808,2]
[402639098,1768733459481,-853.11,0.00017808,2]
[402639099,1768733459490,-500.0,0.00017808,2]
[402639100,1768733459499,-500.0,0.00017808,2]
[402639101,1768733459508,-500.0,0.00017808,2]
[402639102,1768733459518,-500.0,0.00017808,2]
[402639103,1768733459529,-500.0,0.00017808,2]
[402639104,1768733459538,-500.0,0.00017808,2]
[402639105,1768733459547,-500.0,0.00017808,2]
[402639106,1768733459556,-25000.0,0.00017808,3]
[402639107,1768733459565,-574.59,0.00017808,2]
[402639108,1768733459574,-500.0,0.00017808,2]
[402639109,1768733459583,-500.0,0.00017808,2]
[402639110,1768733459592,-500.0,0.00017808,2]
[402639111,1768733459601,-500.0,0.00017808,2]
[402639112,1768733459611,-500.0,0.00017808,2]
[402639113,1768733459620,-500.0,0.00017808,2]
[402639114,1768733459629,-500.0,0.00017808,2]
[402639115,1768733459639,-707.61,0.00017808,2]
[402639116,1768733459648,-500.0,0.00017808,2]
[402639117,1768733459657,-500.0,0.00017808,2]
[402639118,1768733459667,-500.0,0.00017808,2]
[402639119,1768733459676,-500.0,0.00017808,2]
[402639120,1768733459686,-500.0,0.00017808,2]
[402639121,1768733459695,-500.0,0.00017808,2]
[402639122,1768733459705,-500.0,0.00017808,2]
[402639123,1768733459714,-433.58595295,0.00017808,2]
[402639124,1768733459724,-500.0,0.00017808,2]
[402639125,1768733459734,-500.0,0.00017808,2]
[402639126,1768733459743,-185.85843722,0.00017808,2]
[402639127,1768733459753,-500.0,0.00017808,2]
[402639128,1768733459762,-500.0,0.00017808,2]
[402639129,1768733459772,-500.0,0.00017808,2]
[402639130,1768733459782,-500.0,0.00017808,2]
[402639131,1768733459791,-500.0,0.00017808,2]
[402639132,1768733459801,-500.0,0.00017808,2]
[402639133,1768733459810,-500.0,0.00017808,2]
[402639134,1768733459820,-4641.83,0.00017808,2]
[402639135,1768733459830,-500.0,0.00017808,2]
[402639136,1768733459839,-500.0,0.00017808,2]
[402639137,1768733459848,-207.19150813,0.00017808,2]
[402639138,1768733459858,-500.0,0.00017808,2]
[402639139,1768733459868,-513.99,0.00017808,2]
[402639140,1768733459877,-494.52780898,0.00017808,2]
[402639141,1768733459887,-777.05,0.00017808,2]
[402639142,1768733459896,-500.0,0.00017808,2]
[402639143,1768733459906,-561.98,0.00017808,2]
[402639144,1768733459915,-500.0,0.00017808,2]
[402639145,1768733459925,-500.0,0.00017808,2]
[402639146,1768733459934,-500.0,0.00017808,2]
[402639147,1768733459944,-500.0,0.00017808,2]
[402639148,1768733459953,-500.0,0.00017808,2]
[402639149,1768733459962,-293.67590282,0.00017808,2]
[402639150,1768733459972,-500.0,0.00017808,2]
[402639151,1768733459981,-500.0,0.00017808,2]
[402639152,1768733459991,-500.0,0.00017808,2]
[402639153,1768733460000,-500.0,0.00017808,2]
[402639154,1768733460016,-500.0,0.00017808,2]
[402639155,1768733460026,-500.0,0.00017808,2]
[402639156,1768733460036,-500.0,0.00017808,2]
[402639157,1768733460046,-500.0,0.00017808,2]
[402639158,1768733460058,-500.0,0.00017808,2]
[402639159,1768733460067,-500.0,0.00017808,2]
[402639160,1768733460076,-500.0,0.00017808,2]
[402639161,1768733460086,-500.0,0.00017808,2]
[402639162,1768733460096,-500.0,0.00017808,2]
[402639163,1768733460105,-500.0,0.00017808,2]
[402639164,1768733460115,-500.0,0.00017808,2]
[402639165,1768733460124,-500.0,0.00017808,2]
[402639166,1768733460134,-500.0,0.00017808,2]
[402639167,1768733460144,-500.0,0.00017808,2]
[402639168,1768733460154,-500.0,0.00017808,2]
[402639169,1768733460163,-500.0,0.00017808,2]
[402639170,1768733460173,-500.0,0.00017808,2]
[402639171,1768733460183,-500.0,0.00017808,2]
[402639172,1768733460193,-500.0,0.00017808,2]
[402639173,1768733460203,-500.0,0.00017808,2]
[402639174,1768733460212,-500.0,0.00017808,2]
[402639175,1768733460222,-500.0,0.00017808,2]
[402639176,1768733460233,-500.0,0.00017808,2]
[402639177,1768733460243,-182.10475392,0.00017808,2]
[402639178,1768733460253,-527.81,0.00017808,2]
[402639179,1768733460263,-500.0,0.00017808,2]
[402639180,1768733460272,-500.0,0.00017808,2]
[402639181,1768733460282,-542.24,0.00017808,2]
[402639182,1768733460291,-481.35724538,0.00017808,2]
[402639183,1768733460300,-500.0,0.00017808,2]
[402639184,1768733460310,-513.36327137,0.00017808,2]
[402639185,1768733460319,-500.0,0.00017808,2]
[402639186,1768733460329,-500.0,0.00017808,2]
[402639187,1768733460339,-500.0,0.00017808,2]
[402639188,1768733460349,-508.74,0.00017808,2]
[402639189,1768733460359,-500.0,0.00017808,2]
[402639190,1768733460368,-500.0,0.00017808,2]
[402639191,1768733460377,-500.0,0.00017808,2]
[402639192,1768733460387,-500.0,0.00017808,2]
[402639193,1768733460397,-500.0,0.00017808,2]
[402639194,1768733460407,-500.0,0.00017808,2]
[402639195,1768733460416,-527.91,0.00017808,2]
[402639196,1768733460427,-500.0,0.00017808,2]
[402639197,1768733460436,-500.0,0.00017808,2]
[402639198,1768733460446,-561.92248124,0.00017808,2]
[402639199,1768733460456,-500.0,0.00017808,2]
[402639200,1768733460466,-500.0,0.00017808,2]
[402639201,1768733460476,-500.0,0.00017808,2]
[402639202,1768733460485,-633.11689078,0.00017808,2]
[402639203,1768733460495,-500.0,0.00017808,2]
[402639204,1768733460504,-500.0,0.00017808,2]
[402639205,1768733460514,-281.66125483,0.00017808,2]
[402639206,1768733460523,-613.21,0.00017808,2]
[402639207,1768733460533,-500.0,0.00017808,2]
[402639208,1768733460543,-500.0,0.00017808,2]
[402639209,1768733460552,-500.0,0.00017808,2]
[402639210,1768733460562,-500.0,0.00017808,2]
[402639211,1768733460572,-542.76,0.00017808,2]
[402639212,1768733460582,-500.0,0.00017808,2]
[402639213,1768733460591,-500.0,0.00017808,2]
[402639214,1768733460601,-3368.44,0.00017808,2]
[402639215,1768733460611,-500.0,0.00017808,2]
[402639216,1768733460620,-500.0,0.00017808,2]
[402639217,1768733460630,-500.0,0.00017808,2]
[402639218,1768733460640,-500.0,0.00017808,2]
[402639219,1768733460649,-500.0,0.00017808,2]
[402639220,1768733460659,-500.0,0.00017808,2]
[402639221,1768733460668,-500.0,0.00017808,2]
[402639222,1768733460678,-500.0,0.00017808,2]
[402639223,1768733460688,-500.0,0.00017808,2]
[402639224,1768733460698,-1611.7,0.00017808,2]
[402639225,1768733460708,-500.0,0.00017808,2]
[402639226,1768733460718,-500.0,0.00017808,2]
[402639227,1768733460728,-500.0,0.00017808,2]
[402639228,1768733460738,-500.0,0.00017808,2]
[402639229,1768733460748,-500.0,0.00017808,2]
[402639230,1768733460758,-500.0,0.00017808,2]
[402639231,1768733460768,-506.07,0.00017808,2]
[402639232,1768733460779,-546.15,0.00017808,2]
[402639233,1768733460788,-500.0,0.00017808,2]
[402639234,1768733460798,-535.02,0.00017808,2]
[402639235,1768733460808,-500.0,0.00017808,2]
[402639236,1768733460818,-500.0,0.00017808,2]
[402639237,1768733460828,-500.0,0.00017808,2]
[402639238,1768733460838,-500.0,0.00017808,2]
[402639239,1768733460848,-500.0,0.00017808,2]
[402639240,1768733460857,-600.0,0.00017808,2]
[402639241,1768733460868,-250.0,0.00017808,2]
[402639242,1768733460877,-1000.0,0.00017808,2]
[402639243,1768733460887,-163.1649928,0.00017808,2]
[402639244,1768733460896,-1132.80477824,0.0001782,2]
[402639245,1768733460906,-2402.73867139,0.0001783,2]
[402639246,1768733460915,-1743.0,0.00017839,2]
[402639247,1768733460925,-1132.80477824,0.0001784,2]
[402639248,1768733460935,-442.47,0.00017841,2]
[402639249,1768733460944,-587.0,0.00017848,2]
[402639250,1768733460954,-200.0,0.00017855,2]
[402639251,1768733460963,-200.0,0.00017856,2]
[402639252,1768733460973,-200.0,0.00017856,2]
[402639253,1768733460983,-5800.0,0.00017858,2]
[402639254,1768733460992,-617.40005154,0.00017859,2]
[402639255,1768733461002,-1132.80477824,0.0001786,2]
[402639256,1768733461011,-150.0,0.00017862,2]
[402639257,1768733461022,-500.0,0.00017863,2]
[402639258,1768733461035,-500.0,0.00017863,2]
[402639259,1768733461045,-2750.4662996,0.00017866,2]
[402639260,1768733461056,-4852.14857568,0.00017866,2]
[402639261,1768733461067,-7258.52408127,0.00017866,2]
[402639262,1768733461079,-9821.0376,0.00017866,2]
[402639263,1768733461088,-5800.0,0.00017866,2]
[402639264,1768733461100,-761.65,0.00017871,2]
[402639265,1768733461110,-226.6,0.00017871,2]
[402639266,1768733461119,-5800.0,0.00017874,2]
[402639267,1768733461128,-5082.0,0.00017875,2]
[402639268,1768733461138,-250.0,0.00017879,2]
[402639269,1768733461147,-1132.80477824,0.0001788,2]
[402639270,1768733461157,-5800.0,0.00017883,2]
[402639271,1768733461167,-939.884,0.00017883,2]
[402639272,1768733461177,-5800.0,0.00017891,2]
[402639273,1768733461186,-181.03718055,0.000179,2]
[402639274,1768733461197,-5800.0,0.000179,2]
[402639275,1768733461206,-6898.1368,0.000179,2]
[402639276,1768733461217,-153.855505,0.000179,2]
[402639277,1768733461227,-5323.93942523,0.000179,2]
[402639278,1768733461237,-307.73291267,0.000179,2]
[402639279,1768733461246,-307.73291253,0.000179,2]
[402639280,1768733461256,-307.73291253,0.000179,2]
[402639281,1768733461266,-307.73291253,0.000179,2]
[402639282,1768733461275,-307.73291253,0.000179,2]
[402639283,1768733461285,-307.73291253,0.000179,2]
[402639284,1768733461294,-307.73291253,0.000179,2]
[402639285,1768733461303,-307.73291253,0.000179,2]
[402639286,1768733461313,-151.0,0.000179,2]
[402639287,1768733461322,-151.0,0.000179,2]
[402639288,1768733461331,-151.0,0.000179,2]
[402639289,1768733461341,-307.73291253,0.000179,2]
[402639290,1768733461350,-307.73291253,0.000179,2]
[402639291,1768733461359,-307.73291253,0.000179,2]
[402639292,1768733461369,-307.73291253,0.000179,2]
[402639293,1768733461379,-307.73291253,0.000179,2]
[402639294,1768733461388,-307.73291253,0.000179,2]
[402639295,1768733461397,-307.73291253,0.000179,2]
[402639296,1768733461408,-307.73291253,0.000179,2]
[402639297,1768733461418,-307.73291253,0.000179,2]
[402639298,1768733461428,-1132.80477824,0.000179,2]
[402639299,1768733461437,-1249.39886294,0.000179,2]
[402639300,1768733461446,-307.73291253,0.000179,2]
[402639301,1768733461456,-307.73291253,0.000179,2]
[402639302,1768733461465,-307.73291253,0.000179,2]
[402639303,1768733461475,-2480.83969998,0.000179,2]
[402639304,1768733461484,-211.61539095,0.000179,3]
[402639305,1768733461493,-151.0,0.000179,2]
[402639306,1768733461503,-151.0,0.000179,2]
[402639307,1768733461512,-500.0,0.000179,2]
[402639308,1768733461521,-500.0,0.000179,2]
[402639309,1768733461531,-500.0,0.000179,2]
[402639310,1768733461542,-500.0,0.000179,2]
[402639311,1768733461551,-500.0,0.000179,2]
[402639312,1768733461561,-500.0,0.000179,2]
[402639313,1768733461570,-3503.0,0.000179,2]
[402639314,1768733461579,-500.0,0.00017918,2]
[402639315,1768733461588,-500.0,0.00017918,2]
[402639316,1768733461598,-661.50728786,0.0001797,2]
[402639317,1768733461608,-500.0,0.00017972,2]
[402639318,1768733461617,-224.71091954,0.00017972,2]
[402639319,1768733461627,-765.0,0.00017973,2]
[402639320,1768733461636,-150.0,0.00017973,2]
[402639321,1768733461646,-500.0,0.00017973,2]
[402639322,1768733461656,-150.0,0.00017973,2]
[402639323,1768733461666,-155.6514004,0.0001799,2]
[402639324,1768733461677,-155.6514004,0.0001799,2]
[402639325,1768733461687,-2773.9295535,0.00017992,2]
[402639326,1768733461697,-153775.0857446,0.00017995,2]
[402639327,1768733461707,-15441.4872786,0.00017995,2]
[402639328,1768733461716,-209387.2218542,0.00017995,2]
[402639329,1768733461726,-7612.886166,0.00017995,2]
[402639330,1768733461736,-151.0,0.00017995,2]
[402639331,1768733461746,-2519.2560513,0.00017995,2]
[402639332,1768733461756,-24667.1265639,0.00017995,2]
[402639333,1768733461766,-3378.4670959,0.00017995,2]
[402639334,1768733461776,-261.35951101,0.00017999,2]
[402639335,1768733461786,-300.0,0.00017999,2]
[402639336,1768733461796,-300.0,0.00017999,2]
[402639337,1768733461806,-300.0,0.00017999,2]
[402639338,1768733461817,-666.0,0.00017999,2]
[402639339,1768733461827,-151.0,0.00017999,2]
[402639340,1768733462096,-151.0,0.00017999,2]
[402639341,1768733462105,-300.0,0.00017999,2]
[402639342,1768733462115,-300.0,0.00017999,2]